fUSD/lending_fUSD_20260112
["ID","MTS","AMOUNT","RATE_DAILY","PERIOD"]
[401459057,1768239040453,-1000.0,0.00016841,2]
[401459058,1768239040462,-150.0,0.00016843,2]
[401459059,1768239040471,-273.92712949,0.00016849,2]
[401459060,1768239040481,-150.0,0.00016849,2]
[401459061,1768239040491,-150.0,0.00016855,2]
[401459062,1768239040501,-150.0,0.00016858,2]
[401459063,1768239040510,-150.0,0.00016869,2]
[401459064,1768239040520,-150.0,0.00016869,2]
[401459065,1768239040529,-150.0,0.00016879,2]
[401459066,1768239040538,-150.0,0.00016886,2]
[401459067,1768239040547,-150.0,0.00016892,2]
[401459068,1768239040557,-150.0,0.00016908,2]
[401459069,1768239040566,-1000.0,0.00016912,2]
[401459070,1768239040575,-150.0,0.0001692,2]
[401459071,1768239040585,-150.0,0.0001692,2]
[401459072,1768239040594,-150.0,0.00016927,2]
[401459073,1768239040607,-150.0,0.00016929,2]
[401459074,1768239040619,-150.0,0.00016938,2]
[401459075,1768239040628,-150.0,0.00016941,2]
[401459076,1768239040637,-183.92,0.00016942,2]
[401459077,1768239040646,-168.0,0.00016958,2]
[401459078,1768239040656,-150.0,0.00016962,2]
[401459079,1768239040666,-150.0,0.00016967,2]
[401459080,1768239040676,-150.0,0.00016971,2]
[401459081,1768239040687,-150.0,0.00016971,2]
[401459082,1768239040696,-150.0,0.00016971,2]
[401459083,1768239040705,-200.0,0.00016986,2]
[401459084,1768239040714,-166.66,0.00016993,2]
[401459085,1768239040724,-202.96,0.00016996,2]
[401459086,1768239040733,-150.0,0.00016996,2]
[401459087,1768239040742,-150.0,0.00016997,2]
[401459088,1768239040752,-604.41169523,0.00016999,2]
[401459089,1768239040763,-250.0,0.00017,2]
[401459090,1768239040773,-3557.07289406,0.00017,2]
[401459091,1768239040782,-160.0,0.00017,2]
[401459092,1768239040794,-225.13457576,0.00017,2]
[401459093,1768239040805,-151.0,0.00017008,2]
[401459094,1768239040814,-16872.10217032,0.00017011,2]
[401459095,1768239040824,-150.0,0.00017014,2]
[401459096,1768239040834,-639.48,0.00017017,2]
[401459097,1768239040843,-724.98153853,0.00017017,2]
[401459098,1768239040853,-250.0,0.00017017,2]
[401459099,1768239040862,-500.0,0.00017017,2]
[401459100,1768239040871,-250.0,0.00017017,2]
[401459101,1768239040881,-500.0,0.00017017,2]
[401459102,1768239040890,-250.0,0.00017017,2]
[401459103,1768239040899,-250.0,0.00017017,2]
[401459104,1768239040908,-500.0,0.00017017,2]
[401459105,1768239040917,-500.0,0.00017017,2]
[401459106,1768239040928,-250.0,0.00017017,2]
[401459107,1768239040938,-250.0,0.00017017,2]
[401459108,1768239040947,-500.0,0.00017017,2]
[401459109,1768239040956,-500.0,0.00017017,2]
[401459110,1768239040965,-250.0,0.00017017,2]
[401459111,1768239040974,-250.0,0.00017017,2]
[401459112,1768239040983,-500.0,0.00017017,2]
[401459113,1768239040993,-500.0,0.00017017,2]
[401459114,1768239041002,-151.0,0.00017017,2]
[401459115,1768239041011,-214.19143741,0.00017017,2]
[401459116,1768239041020,-250.0,0.00017017,2]
[401459117,1768239041029,-500.0,0.00017017,2]
[401459118,1768239041038,-500.0,0.00017017,2]
[401459119,1768239041047,-250.0,0.00017017,2]
[401459120,1768239041056,-500.0,0.00017017,2]
[401459121,1768239041065,-500.0,0.00017017,2]
[401459122,1768239041075,-500.0,0.00017017,2]
[401459123,1768239041085,-250.0,0.00017017,2]
[401459124,1768239041095,-500.0,0.00017017,2]
[401459125,1768239041105,-500.0,0.00017017,2]
[401459126,1768239041114,-285.08125974,0.00017017,2]
[401459127,1768239041123,-500.0,0.00017017,2]
[401459128,1768239041133,-500.0,0.00017017,2]
[401459129,1768239041142,-500.0,0.00017017,2]
[401459130,1768239041152,-500.0,0.00017017,2]
[401459131,1768239041161,-500.0,0.00017017,2]
[401459132,1768239041171,-500.0,0.00017017,2]
[401459133,1768239041180,-500.0,0.00017017,2]
[401459134,1768239041191,-500.0,0.00017017,2]
[401459135,1768239041200,-500.0,0.00017017,2]
[401459136,1768239041210,-500.0,0.00017017,2]
[401459137,1768239041220,-620.0,0.00017017,2]
[401459138,1768239041230,-500.0,0.00017017,2]
[401459139,1768239041240,-706.57931957,0.00017017,2]
[401459140,1768239041250,-533.88981491,0.00017017,2]
[401459141,1768239041259,-1025.94323817,0.00017017,2]
[401459142,1768239041270,-322.6107,0.00017017,2]
[401459143,1768239041279,-998.0,0.00017017,2]
[401459144,1768239041289,-500.0,0.00017017,2]
[401459145,1768239041298,-500.0,0.00017017,2]
[401459146,1768239041307,-500.0,0.00017017,2]
[401459147,1768239041317,-500.0,0.00017017,2]
[401459148,1768239041326,-500.0,0.00017017,2]
[401459149,1768239041336,-500.0,0.00017017,2]
[401459150,1768239041345,-500.0,0.00017017,2]
[401459151,1768239041356,-500.0,0.00017017,2]
[401459152,1768239041366,-500.0,0.00017017,2]
[401459153,1768239041376,-500.0,0.00017017,2]
[401459154,1768239041385,-500.0,0.00017017,2]
[401459155,1768239041395,-500.0,0.00017017,2]
[401459156,1768239041406,-500.0,0.00017017,2]
[401459157,1768239041415,-194.72792766,0.00017017,2]
[401459158,1768239041425,-150.0,0.00017018,2]
[401459159,1768239041434,-150.0,0.00017023,2]
[401459160,1768239041443,-150.0,0.00017023,2]
[401459161,1768239041453,-150.0,0.00017026,2]
[401459162,1768239041463,-150.0,0.00017031,2]
[401459163,1768239041473,-150.0,0.00017047,2]
[401459164,1768239041481,-150.0,0.00017056,2]
[401459165,1768239041492,-150.0,0.00017057,2]
[401459166,1768239041502,-168.0,0.0001706,2]
[401459167,1768239041513,-150.0,0.00017065,2]
[401459168,1768239041524,-500.0,0.00017073,2]
[401459169,1768239041534,-166.96227274,0.00017073,2]
[401459170,1768239041544,-500.0,0.00017073,2]
[401459171,1768239041553,-500.0,0.00017073,2]
[401459172,1768239041562,-500.0,0.00017073,2]
[401459173,1768239041571,-500.0,0.00017073,2]
[401459174,1768239041580,-500.0,0.00017073,2]
[401459175,1768239041589,-503.84192068,0.00017073,2]
[401459176,1768239041600,-500.0,0.00017073,2]
[401459177,1768239041611,-500.0,0.00017073,2]
[401459178,1768239041623,-500.0,0.00017073,2]
[401459179,1768239041633,-500.0,0.00017073,2]
[401459180,1768239041642,-500.0,0.00017073,2]
[401459181,1768239041651,-500.0,0.00017073,2]
[401459182,1768239041660,-500.0,0.00017073,2]
[401459183,1768239041670,-500.0,0.00017073,2]
[401459184,1768239041679,-500.0,0.00017073,2]
[401459185,1768239041689,-486.88056707,0.00017073,2]
[401459186,1768239041698,-500.0,0.00017073,2]
[401459187,1768239041707,-500.0,0.00017073,2]
[401459188,1768239041716,-500.0,0.00017073,2]
[401459189,1768239041725,-162.59101262,0.00017073,2]
[401459190,1768239041734,-500.19211788,0.00017073,2]
[401459191,1768239041743,-500.0,0.00017073,2]
[401459192,1768239041752,-500.0,0.00017073,2]
[401459193,1768239041762,-500.84213941,0.00017073,2]
[401459194,1768239041772,-500.32712274,0.00017073,2]
[401459195,1768239041781,-501.85422751,0.00017073,2]
[401459196,1768239041791,-500.38035534,0.00017073,2]
[401459197,1768239041800,-500.0,0.00017073,2]
[401459198,1768239041809,-647.42016729,0.00017073,2]
[401459199,1768239041818,-500.0,0.00017073,2]
[401459200,1768239041827,-169.17232811,0.00017073,2]
[401459201,1768239041837,-503.00247421,0.00017073,2]
[401459202,1768239041846,-500.53829083,0.00017073,2]
[401459203,1768239041857,-500.0,0.00017073,2]
[401459204,1768239041866,-163.4155148,0.00017073,2]
[401459205,1768239041875,-500.26791262,0.00017073,2]
[401459206,1768239041884,-500.0,0.00017073,2]
[401459207,1768239041894,-500.0,0.00017073,2]
[401459208,1768239041904,-500.0,0.00017073,2]
[401459209,1768239041913,-150.0,0.00017074,2]
[401459210,1768239041923,-150.0,0.00017074,2]
[401459211,1768239041932,-1000.0,0.00017079,2]
[401459212,1768239041942,-1000.0,0.00017079,2]
[401459213,1768239041951,-150.0,0.00017085,2]
[401459214,1768239041960,-8338.68733204,0.00017092,2]
[401459215,1768239041970,-150.0,0.000171,2]
[401459216,1768239041979,-150.0,0.000171,2]
[401459217,1768239041988,-150.0,0.000171,2]
[401459218,1768239041997,-150.0,0.000171,2]
[401459219,1768239042007,-150.0,0.000171,2]
[401459220,1768239042016,-150.0,0.00017115,2]
[401459221,1768239042025,-469.78735424,0.00017118,2]
[401459222,1768239042034,-150.0,0.00017126,2]
[401459223,1768239042044,-150.0,0.00017126,2]
[401459224,1768239042053,-150.0,0.00017135,2]
[401459225,1768239042062,-150.0,0.00017143,2]
[401459226,1768239042073,-150.0,0.00017144,2]
[401459227,1768239042083,-150.0,0.00017153,2]
[401459228,1768239042093,-1000.0,0.00017155,2]
[401459229,1768239042105,-500.0,0.00017156,2]
[401459230,1768239042114,-391.13971577,0.00017156,2]
[401459231,1768239042123,-150.0,0.00017169,2]
[401459232,1768239042132,-150.0,0.00017174,2]
[401459233,1768239042141,-200.0,0.00017174,2]
[401459234,1768239042151,-150.0,0.00017177,2]
[401459235,1768239042161,-150.0,0.00017177,2]
[401459236,1768239042427,-2325.3,0.00017178,2]
[401459237,1768239042438,-150.0,0.00017182,2]
[401459238,1768239042448,-150.0,0.00017186,2]
[401459239,1768239042457,-273.92712949,0.00017199,2]
[401459240,1768239042467,-1200.0,0.000172,6]
[401459241,1768239042477,-150.0,0.00017203,2]
[401459242,1768239042487,-150.0,0.00017204,2]
[401459243,1768239042496,-168.0,0.00017212,2]
[401459244,1768239042506,-150.0,0.00017229,2]
[401459245,1768239042515,-150.0,0.00017229,2]
[401459246,1768239042525,-150.0,0.00017229,2]
[401459247,1768239042535,-150.0,0.00017233,2]
[401459248,1768239042545,-16872.10217032,0.00017233,2]
[401459249,1768239042555,-553.74,0.00017234,2]
[401459250,1768239042565,-150.0,0.00017238,2]
[401459251,1768239042574,-150.0,0.00017259,2]
[401459252,1768239042584,-150.0,0.00017262,2]
[401459253,1768239042595,-150.0,0.00017271,2]
[401459254,1768239042608,-150.0,0.00017273,2]
[401459255,1768239042620,-150.0,0.0001728,2]
[401459256,1768239042630,-150.0,0.0001728,2]
[401459257,1768239042640,-28108.22327554,0.00017282,2]
[401459258,1768239042650,-639.48,0.00017291,2]
[401459259,1768239042662,-150.0,0.00017292,2]
[401459260,1768239042671,-604.41169523,0.00017299,2]
[401459261,1768239042681,-1600.0,0.000173,6]
[401459262,1768239042692,-150.0,0.00017308,2]
[401459263,1768239042702,-150.0,0.00017314,2]
[401459264,1768239042711,-150.0,0.00017321,2]
[401459265,1768239042721,-166.66,0.00017323,2]
[401459266,1768239042730,-150.0,0.00017331,2]
[401459267,1768239042740,-150.0,0.00017331,2]
[401459268,1768239042749,-2821.0,0.00017335,2]
[401459269,1768239042758,-150.0,0.00017342,2]
[401459270,1768239042767,-150.0,0.00017345,2]
[401459271,1768239042777,-150.0,0.00017351,2]
[401459272,1768239042787,-150.0,0.00017357,2]
[401459273,1768239042797,-150.0,0.00017365,2]
[401459274,1768239042806,-270.62,0.00017375,2]
[401459275,1768239042816,-150.0,0.00017377,2]
[401459276,1768239042826,-150.0,0.0001738,2]
[401459277,1768239042837,-150.0,0.00017383,2]
[401459278,1768239042847,-150.0,0.00017383,2]
[401459279,1768239042859,-150.0,0.000174,2]
[401459281,1768239042869,-150.0,0.000174,2]
[401459282,1768239042879,-150.0,0.000174,2]
[401459284,1768239042890,-150.0,0.000174,2]
[401459286,1768239042899,-2000.0,0.000174,6]
[401459287,1768239042909,-1000.0,0.00017403,2]
[401459288,1768239042919,-150.0,0.0001741,2]
[401459289,1768239042929,-150.0,0.00017412,2]
[401459290,1768239042938,-1000.0,0.00017417,2]
[401459291,1768239042948,-150.0,0.00017434,2]
[401459292,1768239042957,-150.0,0.00017434,2]
[401459293,1768239042967,-150.0,0.00017439,2]
[401459294,1768239042977,-150.0,0.00017443,2]
[401459295,1768239042987,-150.0,0.00017446,2]
[401459296,1768239042996,-16872.10217032,0.00017456,2]
[401459297,1768239043006,-150.0,0.00017469,2]
[401459298,1768239043016,-150.0,0.00017471,2]
[401459299,1768239043026,-150.0,0.00017481,2]
[401459300,1768239043035,-303.96,0.00017485,2]
[401459301,1768239043044,-150.0,0.00017486,2]
[401459302,1768239043054,-150.0,0.00017486,2]
[401459303,1768239043064,-150.0,0.00017486,2]
[401459304,1768239043073,-150.0,0.00017498,2]
[401459305,1768239043083,-2000.0,0.000175,2]
[401459306,1768239043092,-1601.85016191,0.000175,2]
[401459307,1768239043103,-400.0,0.000175,6]
[401459308,1768239043113,-2821.0,0.00017507,2]
[401459309,1768239043123,-150.0,0.00017509,2]
[401459310,1768239043133,-150.0,0.00017515,2]
[401459311,1768239043143,-150.0,0.00017528,2]
[401459312,1768239043152,-150.0,0.00017529,2]
[401459313,1768239043162,-150.0,0.00017537,2]
[401459314,1768239043172,-150.0,0.00017537,2]
[401459315,1768239043181,-273.92712949,0.0001755,2]
[401459316,1768239043191,-150.0,0.0001755,2]
[401459317,1768239043201,-150.0,0.0001755,2]
[401459318,1768239043211,-150.0,0.00017557,2]
[401459319,1768239043221,-2821.0,0.00017564,2]
[401459320,1768239043231,-500.0,0.00017565,2]
[401459321,1768239043241,-639.48,0.00017565,2]
[401459322,1768239043250,-151.0,0.00017565,2]
[401459323,1768239043260,-553.64373807,0.00017565,2]
[401459324,1768239043270,-324.05202517,0.00017565,2]
[401459325,1768239043280,-150.0,0.00017571,2]
[401459326,1768239043290,-150.0,0.00017576,2]
[401459327,1768239043300,-150.0,0.00017585,2]
[401459328,1768239043310,-150.0,0.00017587,2]
[401459329,1768239043320,-150.0,0.00017589,2]
[401459330,1768239043330,-150.0,0.00017589,2]
[401459331,1768239043340,-500.0,0.00017594,2]
[401459332,1768239043351,-604.41169523,0.000176,2]
[401459333,1768239043361,-10800.0,0.000176,2]
[401459334,1768239043371,-400.0,0.000176,6]
[401459335,1768239043380,-5888.0,0.00017606,2]
[401459336,1768239043390,-150.0,0.00017614,2]
[401459337,1768239043399,-150.0,0.00017616,2]
[401459338,1768239043409,-26538.0,0.00017616,2]
[401459339,1768239043418,-150.0,0.00017619,2]
[401459340,1768239043428,-275.91,0.0001762,2]
[401459341,1768239043437,-500.0,0.00017621,2]
[401459342,1768239043447,-1000.0,0.00017621,2]
[401459343,1768239043456,-823.61319503,0.00017621,2]
[401459344,1768239043465,-500.0,0.00017621,2]
[401459345,1768239043475,-1000.0,0.00017621,2]
[401459346,1768239043484,-1000.0,0.00017621,2]
[401459347,1768239043494,-713.84966216,0.00017621,2]
[401459348,1768239043503,-1000.0,0.00017621,2]
[401459349,1768239043512,-1000.0,0.00017621,2]
[401459350,1768239043522,-1000.0,0.00017621,2]
[401459351,1768239043531,-1000.0,0.00017621,2]
[401459352,1768239043541,-501.63732699,0.00017621,2]
[401459353,1768239043551,-1000.0,0.00017621,2]
[401459354,1768239043561,-158.8798646,0.00017621,2]
[401459355,1768239043570,-501.5820239,0.00017621,2]
[401459356,1768239043580,-557.0137817,0.00017621,2]
[401459357,1768239043589,-1000.0,0.00017621,2]
[401459358,1768239043599,-502.87279675,0.00017621,2]
[401459359,1768239043609,-1000.0,0.00017621,2]
[401459360,1768239043623,-1000.0,0.00017621,2]
[401459361,1768239043632,-501.96234831,0.00017621,2]
[401459362,1768239043642,-513.38596883,0.00017621,2]
[401459363,1768239043652,-1000.0,0.00017621,2]
[401459364,1768239043662,-1000.0,0.00017627,2]
[401459366,1768239043672,-1000.0,0.00017628,2]
[401459369,1768239043682,-150.0,0.0001764,2]
[401459370,1768239043694,-150.0,0.0001764,2]
[401459371,1768239043704,-10416.1471515,0.0001764,2]
[401459372,1768239043715,-150.0,0.00017646,2]
[401459373,1768239043725,-150.0,0.00017654,2]
[401459375,1768239043735,-150.0,0.00017657,2]
[401459376,1768239043745,-150.0,0.00017673,2]
[401459377,1768239043755,-150.0,0.00017675,2]
[401459378,1768239043765,-16872.10217032,0.00017678,2]
[401459379,1768239043775,-162.0,0.0001768,2]
[401459380,1768239043785,-150.0,0.00017682,2]
[401459381,1768239043795,-150.0,0.00017688,2]
[401459382,1768239043805,-1000.0,0.00017689,2]
[401459383,1768239043815,-150.0,0.00017691,2]
[401459384,1768239043824,-150.0,0.00017691,2]
[401459385,1768239043834,-150.0,0.00017699,2]
[401459386,1768239043843,-734.0,0.00017699,2]
[401459387,1768239043853,-150.0,0.00017699,2]
[401459388,1768239043862,-150.0,0.00017699,2]
[401459389,1768239043871,-154.35236817,0.00017699,2]
[401459390,1768239043881,-158.8205335,0.00017699,2]
[401459391,1768239043891,-500.0,0.00017699,2]
[401459392,1768239043901,-500.0,0.00017699,2]
[401459393,1768239043911,-500.0,0.00017699,2]
[401459394,1768239043921,-150.0,0.00017699,2]
[401459395,1768239043931,-150.0,0.00017699,2]
[401459396,1768239043940,-500.0,0.00017699,2]
[401459397,1768239043950,-653.0,0.00017699,2]
[401459398,1768239043959,-500.0,0.00017699,2]
[401459399,1768239043971,-150.0,0.000177,2]
[401459400,1768239043981,-150.0,0.000177,2]
[401459401,1768239043991,-150.0,0.000177,2]
[401459402,1768239044002,-780.28325037,0.000177,2]
[401459403,1768239044012,-1000.0,0.000177,2]
[401459404,1768239044022,-400.0,0.000177,6]
[401459405,1768239044033,-403.0,0.000177,5]
[401459406,1768239044044,-150.0,0.00017705,2]
[401459407,1768239044054,-158.96154792,0.00017712,2]
[401459408,1768239044064,-150.0,0.00017723,2]
[401459409,1768239044073,-3736.20418754,0.0001773,2]
[401459410,1768239044083,-7554.21886386,0.0001773,2]
[401459411,1768239044093,-150.0,0.00017734,2]
[401459412,1768239044104,-150.0,0.00017743,2]
[401459413,1768239044113,-150.0,0.00017743,2]
[401459414,1768239044123,-150.0,0.00017743,2]
[401459415,1768239044134,-152.62137386,0.00017754,2]
[401459416,1768239044143,-734.0,0.00017754,2]
[401459417,1768239044154,-200.0,0.00017754,2]
[401459418,1768239044163,-500.0,0.00017754,2]
[401459419,1768239044173,-500.0,0.00017754,2]
[401459420,1768239044183,-500.0,0.00017754,2]
[401459421,1768239044192,-150.0,0.00017754,2]
[401459422,1768239044202,-500.0,0.00017754,2]
[401459423,1768239044212,-500.0,0.00017754,2]
[401459424,1768239044223,-653.0,0.00017754,2]
[401459425,1768239044233,-150.0,0.00017758,2]
[401459426,1768239044244,-150.0,0.00017764,2]
[401459427,1768239044253,-3736.20418754,0.00017764,2]
[401459428,1768239044263,-150.0,0.00017786,2]
[401459429,1768239044273,-150.0,0.00017788,2]
[401459430,1768239044283,-10000.0,0.00017792,2]
[401459431,1768239044293,-150.0,0.00017792,2]
[401459432,1768239044303,-150.0,0.00017793,2]
[401459433,1768239044313,-150.0,0.00017794,2]
[401459434,1768239044323,-150.0,0.00017794,2]
[401459435,1768239044332,-3736.20418754,0.00017798,2]
[401459436,1768239044341,-26578.61631112,0.000178,2]
[401459437,1768239044352,-1000.0,0.000178,2]
[401459438,1768239044361,-400.0,0.000178,6]
[401459439,1768239044371,-156.587,0.00017807,2]
[401459440,1768239044380,-500.0,0.00017808,2]
[401459441,1768239044390,-734.0,0.00017809,2]
[401459442,1768239044399,-500.0,0.00017809,2]
[401459443,1768239044408,-500.0,0.00017809,2]
[401459444,1768239044418,-316.59937829,0.00017809,2]
[401459445,1768239044427,-150.0,0.00017809,2]
[401459446,1768239044436,-500.0,0.00017809,2]
[401459447,1768239044445,-269.06323949,0.00017809,2]
[401459448,1768239044455,-653.0,0.00017809,2]
[401459449,1768239044464,-1000.0,0.00017813,2]
[401459450,1768239044473,-4292.56922,0.0001782,2]
[401459451,1768239044483,-4292.56922,0.0001782,2]
[401459452,1768239044492,-1069.60379365,0.0001782,2]
[401459453,1768239044502,-150.0,0.00017823,2]
[401459454,1768239044511,-150.0,0.00017827,2]
[401459455,1768239044521,-150.0,0.00017829,2]
[401459456,1768239044530,-553.74,0.00017829,2]
[401459457,1768239044539,-107837.66791739,0.0001783,2]
[401459458,1768239044548,-4292.56923,0.0001783,2]
[401459459,1768239044558,-3736.20418754,0.00017832,2]
[401459460,1768239044567,-150.0,0.00017836,2]
[401459461,1768239044576,-639.48,0.00017839,2]
[401459462,1768239044586,-150.0,0.00017846,2]
[401459463,1768239044595,-150.0,0.00017846,2]
[401459464,1768239044607,-150.0,0.00017852,2]
[401459465,1768239044618,-200.0,0.00017856,2]
[401459466,1768239044627,-4292.56922,0.0001786,2]
[401459467,1768239044637,-150.0,0.00017862,2]
[401459468,1768239044646,-500.0,0.00017863,2]
[401459469,1768239044657,-2821.0,0.00017863,2]
[401459470,1768239044666,-734.0,0.00017863,2]
[401459471,1768239044675,-500.0,0.00017863,2]
[401459472,1768239044686,-500.0,0.00017863,2]
[401459473,1768239044695,-150.0,0.00017863,2]
[401459474,1768239044704,-500.0,0.00017863,2]
[401459475,1768239044713,-653.0,0.00017863,2]
[401459476,1768239044723,-3736.20418754,0.00017866,2]
[401459477,1768239044732,-30000.0,0.0001787,2]
[401459478,1768239044742,-150.0,0.00017871,2]
[401459479,1768239044751,-151.0,0.00017879,2]
[401459480,1768239044760,-4292.56922,0.0001788,2]
[401459481,1768239044770,-553.74,0.00017881,2]
[401459482,1768239044779,-150.0,0.00017882,2]
[401459483,1768239044789,-553.74,0.00017882,2]
[401459484,1768239044889,-151.0,0.00017882,2]
[401459485,1768239044898,-151.0,0.00017882,2]
[401459486,1768239044907,-3507.772819,0.00017882,2]
[401459487,1768239044917,-405.895877,0.00017882,2]
[401459488,1768239044926,-151.0,0.00017882,2]
[401459489,1768239044935,-3507.772819,0.00017882,2]
[401459490,1768239044944,-321.616994,0.00017882,2]
[401459491,1768239044953,-405.895877,0.00017882,2]
[401459492,1768239044963,-257.783842,0.00017882,2]
[401459493,1768239044971,-3507.772819,0.00017882,2]
[401459494,1768239044980,-321.616994,0.00017882,2]
[401459495,1768239044989,-405.895877,0.00017882,2]
[401459496,1768239044998,-3507.772819,0.00017882,2]
[401459497,1768239045009,-321.616994,0.00017882,2]
[401459498,1768239045018,-405.895877,0.00017882,2]
[401459499,1768239045027,-151.0,0.00017882,2]
[401459500,1768239045036,-151.0,0.00017882,2]
[401459501,1768239045045,-151.0,0.00017882,2]
[401459502,1768239045055,-321.616994,0.00017882,2]
[401459503,1768239045064,-297.223105,0.00017882,2]
[401459504,1768239045073,-1273.49565,0.00017882,2]
[401459505,1768239045082,-151.0,0.00017882,2]
[401459506,1768239045091,-297.223105,0.00017882,2]
[401459507,1768239045100,-1273.49565,0.00017882,2]
[401459508,1768239045110,-1273.49565,0.00017882,2]
[401459509,1768239045119,-297.223105,0.00017882,2]
[401459510,1768239045128,-151.0,0.00017882,2]
[401459511,1768239045138,-1273.49565,0.00017882,2]
[401459512,1768239045148,-297.223105,0.00017882,2]
[401459513,1768239045158,-1230.432107,0.00017882,2]
[401459514,1768239045167,-788.412285,0.00017882,2]
[401459515,1768239045176,-229.226321,0.00017882,2]
[401459516,1768239045186,-1230.432107,0.00017882,2]
[401459517,1768239045195,-788.412285,0.00017882,2]
[401459518,1768239045204,-229.226321,0.00017882,2]
[401459519,1768239045214,-1230.432107,0.00017882,2]
[401459520,1768239045223,-788.412285,0.00017882,2]
[401459521,1768239045233,-229.226321,0.00017882,2]
[401459522,1768239045243,-1230.432107,0.00017882,2]
[401459523,1768239045252,-229.226321,0.00017882,2]
[401459524,1768239045261,-2096.876442,0.00017882,2]
[401459525,1768239045271,-2096.876442,0.00017882,2]
[401459526,1768239045280,-718.397083,0.00017882,2]
[401459527,1768239045290,-2096.876442,0.00017882,2]
[401459528,1768239045300,-718.397083,0.00017882,2]
[401459529,1768239045309,-718.397083,0.00017882,2]
[401459530,1768239045318,-2096.876442,0.00017882,2]
[401459531,1768239045327,-788.412285,0.00017882,2]
[401459532,1768239045337,-718.397083,0.00017882,2]
[401459533,1768239045346,-253.15414,0.00017882,2]
[401459534,1768239045357,-151.0,0.00017882,2]
[401459535,1768239045367,-151.0,0.00017882,2]
[401459536,1768239045376,-151.0,0.00017882,2]
[401459538,1768239045385,-151.0,0.00017882,2]
[401459540,1768239045394,-151.0,0.00017882,2]
[401459541,1768239045404,-151.0,0.00017882,2]
[401459542,1768239045413,-273.411244,0.00017882,2]
[401459543,1768239045422,-151.0,0.00017882,2]
[401459544,1768239045431,-151.0,0.00017882,2]
[401459545,1768239045441,-406.875021,0.00017882,2]
[401459546,1768239045450,-406.875021,0.00017882,2]
[401459547,1768239045459,-406.875021,0.00017882,2]
[401459548,1768239045468,-233.506514,0.00017882,2]
[401459549,1768239045477,-169.699624,0.00017882,2]
[401459550,1768239045486,-406.875021,0.00017882,2]
[401459551,1768239045496,-233.506514,0.00017882,2]
[401459552,1768239045505,-169.699624,0.00017882,2]
[401459553,1768239045513,-214.572712,0.00017882,2]
[401459554,1768239045523,-233.506514,0.00017882,2]
[401459555,1768239045532,-156.283737,0.00017882,2]
[401459556,1768239045541,-214.572712,0.00017882,2]
[401459557,1768239045550,-169.699624,0.00017882,2]
[401459558,1768239045559,-233.506514,0.00017882,2]
[401459559,1768239045568,-151.0,0.00017882,2]
[401459561,1768239045578,-214.572712,0.00017882,2]
[401459562,1768239045587,-169.699624,0.00017882,2]
[401459563,1768239045596,-151.0,0.00017882,2]
[401459564,1768239045609,-151.0,0.00017882,2]
[401459565,1768239045623,-214.572712,0.00017882,2]
[401459566,1768239045634,-9379.565638,0.00017882,2]